bitfinex/quotes_BTCUSD_20250205
["timestamp","ask_amount","ask_price","bid_price","bid_amount"]
[1738768988703,0.0074947,98338.0,98321.0,0.322561]
[1738768988931,0.0074947,98338.0,98321.0,1.50967568]
[1738768989086,0.0074947,98338.0,98321.0,1.52846785]
[1738768989531,0.0074947,98338.0,98321.0,1.50846785]
[1738768989746,0.0074947,98338.0,98321.0,1.46812994]
[1738768990395,0.0074947,98338.0,98321.0,1.49937209]
[1738768990639,0.0074947,98338.0,98321.0,1.50937209]
[1738768990820,0.0074947,98338.0,98321.0,1.51937209]
[1738768991835,0.0074947,98338.0,98321.0,1.53934062]
[1738768992623,0.0074947,98338.0,98321.0,2.07574062]
[1738768993093,0.203326,98364.0,98325.0,0.01]
[1738768993349,0.152494,98364.0,98363.0,0.10250365]
[1738768993521,0.10336599,98365.0,98363.0,0.10250365]
[1738768993727,0.10336599,98365.0,98364.0,0.10250365]
[1738768993941,0.00881439,98368.0,98364.0,0.10352021]
[1738768994142,0.00881439,98368.0,98367.0,0.023]
[1738768994345,0.00881439,98368.0,98364.0,0.10250365]
[1738768994346,0.00895407,98368.0,98364.0,0.10250365]
[1738768994760,0.16144207,98368.0,98364.0,0.10250365]
[1738768994915,0.00895407,98368.0,98364.0,0.10250365]
[1738768995343,0.00895407,98368.0,98365.0,0.01879217]
[1738768995541,0.15249,98367.0,98365.0,0.01879217]
[1738768996060,0.00895407,98368.0,98365.0,0.01879217]
[1738768996840,0.00895407,98368.0,98366.0,0.01879217]
[1738768997489,0.00895407,98368.0,98366.0,0.17128217]
[1738768997700,0.00895407,98368.0,98367.0,0.01879217]
[1738768998104,0.16144207,98368.0,98367.0,0.01879217]
[1738768998506,0.16144207,98368.0,98367.0,0.12129582]
[1738768998704,0.00895407,98368.0,98367.0,0.12129582]
[1738768998967,0.16144207,98368.0,98367.0,0.12129582]
[1738769000094,0.23914207,98368.0,98367.0,0.01879217]
[1738769000302,0.152542,98333.0,98332.0,0.08076647]
[1738769000499,0.197542,98333.0,98332.0,0.18327012]
[1738769000933,0.197542,98333.0,98332.0,0.10250365]
[1738769001132,0.06118,98332.0,98304.0,1.02127312]
[1738769001351,0.045,98333.0,98314.0,0.10250365]
[1738769001540,0.0784,98332.0,98315.0,0.10250365]
[1738769001723,0.152569,98317.0,98315.0,0.10250365]
[1738769002298,0.0784,98316.0,98315.0,0.10250365]
[1738769002899,0.0457,98315.0,98304.0,0.00046599]
[1738769003102,0.211786,98305.0,98304.0,0.10296964]
[1738769004955,0.22486683,98305.0,98304.0,0.10296964]
[1738769009320,0.22486683,98305.0,98304.0,0.00046599]
[1738769009321,0.37486683,98305.0,98304.0,0.00046599]
[1738769009600,0.42266683,98305.0,98304.0,0.00046599]
[1738769013006,0.15,98304.0,98252.0,1.02127312]
[1738769013208,0.382139,98271.0,98270.0,0.18327012]
[1738769013423,0.382139,98271.0,98270.0,0.08076647]
[1738769013628,0.382139,98271.0,98270.0,0.10250365]
[1738769015040,0.15,98270.0,98269.0,0.00013974]
[1738769015218,0.15,98270.0,98269.0,0.10264339]
[1738769016203,0.232139,98271.0,98269.0,0.10264339]
[1738769016606,0.2445388,98271.0,98270.0,0.10250365]
[1738769018063,0.2445388,98271.0,98269.0,0.00013974]
[1738769018876,0.2445388,98271.0,98270.0,0.10250365]
[1738769022064,0.15264,98270.0,98269.0,0.00013974]
[1738769022409,0.19794,98270.0,98269.0,0.00013974]
[1738769023513,0.34794,98270.0,98269.0,0.00013974]
[1738769023756,0.152696,98234.0,98233.0,0.08076647]
[1738769023958,0.152696,98234.0,98233.0,0.18340989]
[1738769024133,0.152696,98234.0,98233.0,0.10264342]
[1738769025510,0.279864,98249.0,98233.0,0.10264342]
[1738769025821,0.152695,98235.0,98234.0,0.10250365]
[1738769027007,0.08864551,98249.0,98234.0,0.10250365]
[1738769027373,6.95e-05,98248.0,98241.0,0.10250365]
[1738769027582,0.152684,98242.0,98241.0,0.10250365]
[1738769028400,0.1527535,98242.0,98241.0,0.10250365]
[1738769029470,6.95e-05,98242.0,98241.0,0.25518865]
[1738769030595,6.95e-05,98242.0,98241.0,0.25541293]
[1738769032775,6.95e-05,98242.0,98241.0,0.10272793]
[1738769032977,0.18567309,98258.0,98242.0,0.152683]
[1738769033179,0.15267,98252.0,98249.0,0.10250365]
[1738769033384,0.203531,98265.0,98249.0,0.10250365]
[1738769033586,0.152655,98261.0,98255.0,0.25516665]
[1738769033797,0.20353,98266.0,98256.0,0.152661]
[1738769033972,0.203523,98269.0,98259.0,0.10250365]
[1738769034187,0.0759,98282.0,98267.0,0.10250365]
[1738769034395,0.0801,98296.0,98278.0,0.10250365]
[1738769034600,0.152618,98284.0,98278.0,1.27640477]
[1738769034817,0.152613,98288.0,98282.0,0.25512465]
[1738769035058,0.0801,98296.0,98282.0,0.10250365]
[1738769035257,0.152615,98287.0,98282.0,0.10250365]
[1738769035483,0.0801,98296.0,98282.0,0.10250365]
[1738769035683,0.15262,98283.0,98282.0,0.10250365]
[1738769038624,0.152667,98253.0,98252.0,0.08076647]
[1738769038825,0.152667,98253.0,98252.0,0.21499001]
[1738769039027,0.152667,98253.0,98252.0,0.10264342]
[1738769040294,0.01272237,98262.0,98252.0,0.10264342]
[1738769040501,0.078,98267.0,98257.0,0.10250365]
[1738769040668,0.078,98280.0,98263.0,0.10250365]
[1738769040883,0.15265,98264.0,98263.0,0.10250365]
[1738769041145,0.20353,98266.0,98263.0,0.13409628]
[1738769041318,0.152649,98265.0,98263.0,0.10250365]
[1738769041474,0.078,98280.0,98264.0,0.03159646]
[1738769041676,0.078,98280.0,98265.0,0.10250365]
[1738769041891,0.078,98280.0,98268.0,0.10250365]
[1738769042113,0.0782,98291.0,98276.0,0.10250365]
[1738769042491,0.152629,98277.0,98276.0,0.10250365]
[1738769042870,0.20349,98285.0,98276.0,0.10250365]
[1738769043129,0.0782,98291.0,98277.0,0.03160093]
[1738769043243,0.152625,98280.0,98278.0,0.10250365]
[1738769043443,0.152625,98280.0,98279.0,0.03160093]
[1738769043645,0.152625,98280.0,98279.0,0.13410458]
[1738769043869,0.203489,98286.0,98279.0,0.13410458]
[1738769044071,0.0782,98291.0,98280.0,0.13410458]
[1738769044347,0.01242139,98296.0,98281.0,0.03160093]
[1738769044549,0.0816,98301.0,98282.0,0.10250365]
[1738769044762,0.152602,98295.0,98286.0,0.10250365]
[1738769044970,0.152603,98294.0,98287.0,0.18421493]
[1738769045170,0.0816,98301.0,98288.0,0.13410458]
[1738769045374,0.152609,98290.0,98289.0,0.03160093]
[1738769045579,0.152609,98290.0,98289.0,0.13410458]
[1738769046174,0.152604,98294.0,98289.0,0.13410458]
[1738769046411,0.152608,98291.0,98290.0,0.13410458]
[1738769046742,0.152608,98291.0,98290.0,0.10250365]
[1738769047264,0.20346,98299.0,98290.0,0.10250365]
[1738769047485,0.152608,98291.0,98290.0,0.10250365]
[1738769048049,0.152604,98293.0,98290.0,0.13408439]
[1738769048253,0.203441,98309.0,98292.0,0.10250365]
[1738769048479,0.0756,98314.0,98299.0,0.10250365]
[1738769048682,0.0455,98322.0,98299.0,0.28769556]
[1738769048878,0.01275373,98320.0,98299.0,0.28667832]
[1738769049080,0.21617273,98320.0,98299.0,0.28667832]
[1738769049254,0.281711,98323.0,98299.0,0.28667832]
[1738769049458,0.0783,98323.0,98299.0,0.28667832]
[1738769049641,0.152565,98319.0,98299.0,0.28667832]
[1738769049847,0.0791,98332.0,98299.0,1.30204075]
[1738769050082,0.152558,98323.0,98304.0,0.152587]
[1738769050289,0.0001066,98333.0,98304.0,1.33094344]
[1738769050485,0.0001066,98333.0,98304.0,1.30794344]
[1738769050732,0.203393,98332.0,98304.0,1.30794344]
[1738769050907,0.152559,98323.0,98304.0,1.30794344]
[1738769051108,0.152561,98321.0,98304.0,1.30794344]
[1738769051448,0.0001066,98333.0,98304.0,1.12377677]
[1738769051581,0.1526928,98305.0,98304.0,1.12377677]
[1738769051785,0.0001068,98305.0,98304.0,1.12377677]
[1738769052308,0.0001068,98305.0,98304.0,1.27636377]
[1738769052719,0.00015335,98305.0,98304.0,1.27636377]
[1738769052926,0.00015335,98305.0,98304.0,1.56115465]
[1738769053099,0.00015335,98305.0,98304.0,1.60725465]
[1738769053328,1e-08,98305.0,98304.0,1.60725465]
[1738769053744,1e-08,98305.0,98304.0,1.61964748]
[1738769053998,1e-08,98305.0,98304.0,1.60725465]
[1738769054150,1e-08,98305.0,98304.0,1.52695465]
[1738769055205,0.0767,98358.0,98332.0,0.175544]
[1738769055556,0.00015317,98333.0,98332.0,1.33081165]
[1738769055745,0.00015317,98333.0,98332.0,1.48081165]
[1738769056271,0.00015317,98333.0,98332.0,1.44932077]
[1738769057598,0.00015317,98333.0,98332.0,1.47011588]
[1738769057992,0.0768065,98368.0,98346.0,0.152522]
[1738769058219,0.152507,98356.0,98355.0,0.10250365]
[1738769059359,0.203334,98360.0,98355.0,0.10250365]
[1738769059548,0.07727223,98368.0,98355.0,0.10250365]
[1738769059745,0.07727223,98368.0,98358.0,0.1668697]
[1738769060016,0.152491,98366.0,98359.0,0.25500465]
[1738769060145,0.28059023,98368.0,98359.0,0.10250365]
[1738769060507,0.152501,98360.0,98359.0,0.10250365]
[1738769061050,0.203327,98364.0,98331.0,1.02127312]
[1738769061276,0.152532,98340.0,98339.0,0.08076647]
[1738769061476,0.152532,98340.0,98339.0,0.18327012]
[1738769061678,0.152532,98340.0,98339.0,0.10250365]
[1738769061927,0.0817,98342.0,98339.0,0.10250365]
[1738769062153,0.203373,98341.0,98340.0,0.10250365]
[1738769063073,0.0817,98342.0,98340.0,0.10250365]
[1738769063282,0.152516,98350.0,98343.0,0.152526]
[1738769063487,0.152516,98350.0,98346.0,0.10250365]
[1738769064409,0.152518,98349.0,98346.0,0.10250365]
[1738769064721,0.152517,98350.0,98346.0,0.10250365]
[1738769064924,0.0779,98357.0,98346.0,0.10250365]
[1738769065245,0.15252,98348.0,98346.0,0.10250365]
[1738769066917,0.152521,98347.0,98346.0,0.10250365]
[1738769067348,0.152517,98350.0,98346.0,0.10250365]
[1738769067519,0.152519,98349.0,98346.0,0.10250365]
[1738769067722,0.20334,98357.0,98348.0,0.10250365]
[1738769068023,0.152502,98359.0,98352.0,0.25501565]
[1738769068202,0.152504,98359.0,98352.0,0.10250365]
[1738769068403,0.203326,98364.0,98352.0,0.10250365]
[1738769068660,0.152504,98358.0,98352.0,0.25501565]
[1738769068980,0.0754,98366.0,98352.0,0.10250365]
[1738769068981,0.152493,98365.0,98352.0,0.10250365]
[1738769069180,0.152501,98360.0,98353.0,0.152511]
[1738769069406,0.00057223,98368.0,98359.0,0.10250365]
[1738769069597,0.00057223,98368.0,98361.0,0.10250365]
[1738769069770,0.01288001,98368.0,98361.0,0.10250365]
[1738769069978,0.00057223,98368.0,98361.0,0.10250365]
[1738769070182,0.152497,98362.0,98361.0,0.10250365]
[1738769071386,0.203322,98367.0,98361.0,0.10250365]
[1738769071710,0.01239757,98368.0,98367.0,0.15249]
[1738769071711,0.00057223,98368.0,98367.0,0.15249]
[1738769071909,0.00057223,98368.0,98367.0,0.25499365]
[1738769073067,0.152464,98384.0,98376.0,0.152475]
[1738769073273,0.152464,98384.0,98363.0,0.22373701]
[1738769073274,0.152464,98384.0,98382.0,0.10250365]
[1738769073431,0.152465,98383.0,98382.0,0.10250365]
[1738769074123,0.01233673,98390.0,98383.0,0.203287]
[1738769074330,0.203274,98389.0,98384.0,0.10250365]
[1738769074528,0.152459,98387.0,98384.0,0.10250365]
[1738769074734,0.152462,98385.0,98384.0,0.10250365]
[1738769076135,0.01233673,98390.0,98384.0,0.10250365]
[1738769076342,0.01233673,98390.0,98368.0,1.01536243]
[1738769076343,0.00024659,98390.0,98389.0,0.10250365]
[1738769076567,0.15270059,98390.0,98389.0,0.10250365]
[1738769077173,0.00024659,98390.0,98389.0,0.10250365]
[1738769078521,0.00024659,98390.0,98389.0,0.25495965]
[1738769078860,0.00024659,98390.0,98389.0,0.10250365]
[1738769079269,0.15270059,98390.0,98389.0,0.10250365]
[1738769079787,0.00024659,98390.0,98389.0,0.10250365]
[1738769080168,0.15270059,98390.0,98389.0,0.10250365]
[1738769081898,0.00024659,98390.0,98389.0,0.10250365]
[1738769083579,0.00024659,98390.0,98389.0,0.28647075]
[1738769083931,0.00024659,98390.0,98389.0,0.13401475]
[1738769084130,0.00024659,98390.0,98389.0,0.10250365]
[1738769084537,0.00024659,98390.0,98389.0,0.13401753]
[1738769085735,0.15270059,98390.0,98389.0,0.13401753]
[1738769085940,0.15270059,98390.0,98389.0,0.10250365]
[1738769086968,0.23140059,98390.0,98389.0,0.10250365]
[1738769087807,0.24356902,98390.0,98389.0,0.10250365]
[1738769089590,0.152488,98368.0,98367.0,0.00022407]
[1738769089769,0.152488,98368.0,98367.0,0.10272772]
[1738769089977,0.233588,98368.0,98367.0,0.10272772]
[1738769091560,0.152488,98368.0,98367.0,0.10272772]
[1738769092386,0.16465238,98368.0,98367.0,0.10272772]
[1738769093012,0.152488,98368.0,98367.0,0.10272772]
[1738769093215,0.152487,98370.0,98367.0,0.10272772]
[1738769093419,0.152485,98370.0,98369.0,0.10250365]
[1738769096714,0.203306,98374.0,98369.0,0.10250365]
[1738769096914,0.15248,98373.0,98372.0,0.10250365]
[1738769097518,0.1541975,98373.0,98372.0,0.10250365]
[1738769100520,0.0017175,98373.0,98372.0,0.10250365]
[1738769100722,0.0017175,98373.0,98372.0,0.25498565]
[1738769100933,0.0017175,98373.0,98372.0,0.2865821]
[1738769102440,0.0017175,98373.0,98372.0,0.3095821]
[1738769102898,0.0010275,98381.0,98380.0,0.15247]
[1738769103097,0.0010275,98381.0,98380.0,0.3105863]
[1738769103322,0.0010275,98381.0,98380.0,0.3095701]
[1738769104783,0.0010275,98381.0,98380.0,0.1571001]
[1738769105357,0.0010275,98381.0,98380.0,0.1341001]
[1738769105574,0.1534955,98381.0,98380.0,0.1341001]
[1738769105800,0.1534955,98381.0,98380.0,0.10250365]
[1738769106228,0.16570326,98381.0,98380.0,0.10250365]
[1738769109700,0.16581006,98381.0,98380.0,0.10250365]
[1738769112370,0.0011343,98381.0,98380.0,0.10250365]
[1738769115287,0.1536023,98381.0,98380.0,0.10250365]
[1738769116408,0.0011343,98381.0,98380.0,0.10250365]
[1738769116616,0.0011343,98381.0,98380.0,0.13411874]
[1738769117059,0.1536023,98381.0,98380.0,0.10250365]
[1738769117263,0.0011343,98381.0,98380.0,0.10250365]
[1738769117480,0.1536023,98381.0,98380.0,0.13412074]
[1738769117858,0.0011343,98381.0,98380.0,0.13412074]
[1738769118099,0.1536023,98381.0,98380.0,0.13412074]
[1738769118524,0.0011343,98381.0,98380.0,0.13412074]
[1738769118640,0.1536023,98381.0,98380.0,0.13412074]
[1738769118856,0.1536023,98381.0,98380.0,0.10250365]
[1738769119580,0.1536023,98381.0,98380.0,0.13413056]
[1738769120158,0.1536023,98381.0,98380.0,0.10250365]
[1738769122102,0.1536023,98381.0,98380.0,0.09709641]
[1738769122309,0.2314023,98381.0,98380.0,0.09709641]
[1738769123230,0.24368085,98381.0,98380.0,0.09709641]
[1738769123703,0.16588085,98381.0,98380.0,0.09709641]
[1738769133315,0.152479,98374.0,98373.0,0.00022428]
[1738769133539,0.152479,98374.0,98373.0,0.10272793]
[1738769134115,0.227979,98374.0,98373.0,0.10272793]
[1738769134349,0.426579,98374.0,98373.0,2.8e-07]
[1738769134541,0.152528,98342.0,98332.0,0.00022428]
[1738769134764,0.152528,98342.0,98341.0,0.19253735]
[1738769135793,0.152528,98342.0,98341.0,0.19300308]
[1738769136673,0.152526,98344.0,98341.0,0.19300308]
[1738769136940,0.152528,98343.0,98342.0,0.10250365]
[1738769140878,0.302528,98342.0,98341.0,0.00046573]
[1738769141162,0.152542,98333.0,98332.0,0.00022428]
[1738769141455,0.227642,98333.0,98332.0,0.00022428]
[1738769141878,0.377642,98333.0,98332.0,0.00022428]
[1738769142847,0.377642,98333.0,98292.0,0.17080017]
[1738769142848,0.152604,98293.0,98292.0,0.17080017]
[1738769143041,0.152604,98293.0,98292.0,0.27330382]
[1738769143243,0.152604,98293.0,98292.0,0.19253735]
[1738769143531,0.152602,98295.0,98292.0,0.19253735]
[1738769143733,0.152602,98295.0,98294.0,0.10250365]
[1738769144121,0.152602,98295.0,98294.0,0.10255022]
[1738769144502,0.15220586,98295.0,98294.0,0.10255022]
[1738769144717,0.16740967,98295.0,98294.0,0.10255022]
[1738769144875,0.16740967,98295.0,98294.0,4.657e-05]
[1738769145079,0.31740967,98295.0,98294.0,4.657e-05]
[1738769146954,0.31740967,98295.0,98294.0,0.10255022]
[1738769147548,0.16740967,98295.0,98294.0,0.10255022]
[1738769147991,0.15220586,98295.0,98294.0,0.10255022]
[1738769148231,0.152596,98299.0,98294.0,0.1027745]
[1738769148454,0.152598,98298.0,98295.0,0.10250365]
[1738769148710,0.082,98315.0,98295.0,0.10250365]
[1738769149421,0.082,98315.0,98294.0,0.00027085]
[1738769149422,0.082,98315.0,98300.0,0.10250365]
[1738769149624,0.152588,98304.0,98300.0,0.10250365]
[1738769149837,0.0458,98323.0,98300.0,0.10250365]
[1738769150040,0.152589,98303.0,98300.0,0.10250365]
[1738769150172,0.06126242,98323.0,98300.0,0.10250365]
[1738769150369,0.152588,98304.0,98300.0,0.10250365]
[1738769150579,0.26467342,98323.0,98303.0,0.10250365]
[1738769150786,0.203415,98321.0,98305.0,0.10250365]
[1738769150987,0.152584,98306.0,98305.0,0.10250365]
[1738769151313,0.12518111,98306.0,98305.0,0.10250365]
[1738769151520,0.01546242,98323.0,98305.0,0.10250365]
[1738769151733,0.28179,98334.0,98312.0,0.10250365]
[1738769152094,0.0784,98334.0,98312.0,0.10250365]
[1738769152265,0.203396,98331.0,98323.0,0.10250365]
[1738769152465,0.0784,98343.0,98323.0,0.10250365]
[1738769152609,0.152555,98325.0,98323.0,0.10250365]
[1738769153423,0.20338,98338.0,98323.0,0.10250365]
[1738769153424,0.203386,98335.0,98323.0,0.10250365]
[1738769153645,0.09324171,98343.0,98325.0,0.25505765]
[1738769153848,0.203398,98330.0,98325.0,0.10250365]
[1738769154048,0.203371,98342.0,98325.0,0.10250365]
[1738769154249,0.152548,98330.0,98325.0,0.10250365]
[1738769154453,0.152547,98331.0,98325.0,0.10250365]
[1738769154863,0.15255,98328.0,98325.0,0.10250365]
[1738769155068,0.152552,98327.0,98325.0,0.10250365]
[1738769155746,0.203401,98328.0,98325.0,0.10250365]
[1738769155984,0.15301144,98331.0,98325.0,0.10250365]
[1738769156184,0.00046544,98331.0,98325.0,0.10250365]
[1738769156371,0.15301144,98331.0,98325.0,0.10250365]
[1738769156587,0.00046544,98331.0,98325.0,0.10250365]
[1738769156987,0.152553,98327.0,98325.0,0.10250365]
[1738769158387,0.00046544,98331.0,98325.0,0.25505765]
[1738769158589,0.00046544,98331.0,98330.0,0.25505065]
[1738769159034,0.00046544,98331.0,98330.0,0.10250365]
[1738769159185,0.15301044,98331.0,98330.0,0.10250365]
[1738769159387,0.07946544,98331.0,98289.0,0.0756]
[1738769159649,0.15258,98309.0,98308.0,0.10250365]
[1738769161695,0.203433,98313.0,98308.0,0.10250365]
[1738769161696,0.203381,98338.0,98308.0,0.10250365]
[1738769161869,0.152566,98318.0,98314.0,0.10250365]
[1738769162081,0.0001068,98328.0,98317.0,0.10250365]
[1738769162280,0.0001068,98328.0,98322.0,0.10250365]
[1738769163088,0.152555,98326.0,98322.0,0.10250365]
[1738769163289,0.0001068,98328.0,98316.0,0.203423]
[1738769163290,0.0001068,98328.0,98327.0,0.152552]
[1738769163529,0.0001068,98328.0,98327.0,0.25505565]
[1738769164729,0.0001068,98328.0,98327.0,0.10250365]
[1738769165945,0.0001068,98328.0,98327.0,0.10352056]
[1738769166491,0.0001068,98328.0,98327.0,0.10250365]
[1738769167014,0.0001068,98328.0,98327.0,0.10352047]
[1738769167255,0.0777,98368.0,98328.0,0.15]
[1738769167643,0.152507,98356.0,98354.0,0.10250365]
[1738769169588,0.152508,98355.0,98354.0,0.10250365]
[1738769169794,0.0001069,98390.0,98354.0,0.10250365]
[1738769169995,0.203309,98373.0,98356.0,0.10250365]
[1738769170325,0.152503,98359.0,98356.0,0.10250365]
[1738769170519,0.152505,98357.0,98356.0,0.10250365]
[1738769170944,0.203329,98363.0,98356.0,0.10250365]
[1738769171207,0.15249,98367.0,98361.0,0.25500265]
[1738769171340,0.00013964,98368.0,98361.0,0.10250365]
[1738769171541,0.15262964,98368.0,98361.0,0.10250365]
[1738769171751,0.00013964,98368.0,98361.0,0.10250365]
[1738769171980,0.00013964,98368.0,98367.0,0.10250365]
[1738769172185,0.00013964,98368.0,98367.0,0.25499365]
[1738769172331,0.00013964,98368.0,98367.0,1.27626677]
[1738769172539,0.00013964,98368.0,98367.0,1.47765013]
[1738769172737,0.00013964,98368.0,98367.0,1.50065013]
[1738769173002,0.00013964,98368.0,98367.0,1.51546525]
[1738769173634,0.00013964,98368.0,98367.0,1.49246525]
[1738769173751,0.00013964,98368.0,98367.0,1.51133992]
[1738769174472,0.00013964,98368.0,98367.0,1.47984397]
[1738769174878,0.00013964,98368.0,98367.0,1.4839693]
[1738769175618,0.00013964,98368.0,98367.0,1.51540157]
[1738769176425,0.00013964,98368.0,98367.0,1.4839693]
[1738769177269,0.00013964,98368.0,98367.0,1.12377677]
[1738769177445,0.00013964,98368.0,98367.0,0.10250365]
[1738769178088,0.13362664,98369.0,98367.0,0.10250365]
[1738769179865,0.203314,98370.0,98367.0,0.10250365]
[1738769179996,0.152488,98368.0,98367.0,0.10250365]
[1738769181471,0.01510843,98371.0,98367.0,0.10250365]
[1738769181674,0.20329,98382.0,98370.0,0.10250365]
[1738769181829,0.203297,98378.0,98371.0,0.12140881]
[1738769182028,0.20329,98382.0,98371.0,0.12140881]
[1738769182029,0.152482,98372.0,98371.0,0.12140881]
[1738769183357,0.203299,98377.0,98371.0,0.12140881]
[1738769183560,0.0918844,98379.0,98371.0,0.12140881]
[1738769183761,0.152482,98372.0,98371.0,0.12140881]
[1738769183956,0.152471,98380.0,98371.0,0.12140881]
[1738769184171,0.15247,98380.0,98379.0,0.10250365]
[1738769185014,0.203285,98385.0,98379.0,0.10250365]
[1738769185218,0.0773069,98390.0,98380.0,0.10250365]
[1738769185219,0.152459,98387.0,98380.0,0.10250365]
[1738769185448,0.152463,98384.0,98380.0,0.10250365]
[1738769185615,0.203277,98388.0,98380.0,0.10250365]
[1738769185815,0.0001069,98390.0,98380.0,0.25599002]
[1738769186079,0.0001069,98390.0,98380.0,0.10250365]
[1738769186080,0.152458,98388.0,98380.0,0.10250365]
[1738769186260,0.203282,98386.0,98380.0,0.12140744]
[1738769186392,0.1536023,98381.0,98380.0,0.12140744]
[1738769188829,0.2327023,98381.0,98380.0,0.12140744]
[1738769189453,0.2327023,98381.0,98380.0,0.10250365]
[1738769190632,0.1536023,98381.0,98380.0,0.10250365]
[1738769190838,0.0011343,98381.0,98380.0,0.10250365]
[1738769191045,0.0011343,98381.0,98380.0,0.25497365]
[1738769191249,0.0011343,98381.0,98380.0,0.10250365]
[1738769191480,0.0011343,98381.0,98380.0,0.12141005]
[1738769192422,0.0011343,98381.0,98380.0,0.27388005]
[1738769193031,0.0001069,98390.0,98380.0,0.27388005]
[1738769193032,0.0001069,98390.0,98380.0,0.12141005]
[1738769193236,0.0001069,98390.0,98389.0,0.10250365]
[1738769193436,0.1525609,98390.0,98389.0,0.10250365]
[1738769194457,0.2309609,98390.0,98389.0,0.10250365]
[1738769194792,0.2309609,98390.0,98373.0,0.10250365]
[1738769194793,0.0494,98389.0,98373.0,0.10250365]
[1738769195113,0.0494,98389.0,98367.0,0.0012407]
[1738769195114,0.152477,98375.0,98374.0,0.10250365]
[1738769197127,0.0494,98389.0,98374.0,0.10250365]
[1738769197327,0.0495,98401.0,98375.0,0.10250365]
[1738769197541,0.152471,98379.0,98375.0,0.10250365]
[1738769197742,0.0001069,98390.0,98378.0,0.10250365]
[1738769197941,0.15246,98386.0,98385.0,0.10250365]
[1738769203253,0.0001069,98390.0,98385.0,0.13411182]
[1738769203458,0.0001069,98390.0,98389.0,0.10250365]
[1738769203661,0.0001069,98390.0,98389.0,0.13411182]
[1738769205210,0.1525609,98390.0,98389.0,0.13411182]
[1738769207427,0.1525609,98390.0,98389.0,0.10250365]
[1738769213122,0.00953924,98396.0,98389.0,0.10250365]
[1738769213347,0.0001069,98404.0,98403.0,0.152434]
[1738769213553,0.00024651,98404.0,98403.0,0.28657134]
[1738769217273,0.00024651,98404.0,98403.0,0.13413734]
[1738769217811,0.23107851,98404.0,98403.0,0.10250365]
[1738769218013,0.25857851,98404.0,98403.0,0.10250365]
[1738769218217,0.27299434,98404.0,98403.0,0.10250365]
[1738769218842,0.13931583,98404.0,98403.0,0.10250365]
[1738769218986,0.0146654,98407.0,98403.0,0.10250365]
[1738769219190,0.0146654,98407.0,98404.0,0.10250365]
[1738769219397,0.152431,98405.0,98404.0,0.10250365]
[1738769220341,0.0146654,98407.0,98404.0,0.10250365]
[1738769221070,0.0146654,98407.0,98406.0,0.25493265]
[1738769221223,0.0146654,98407.0,98406.0,0.28653518]
[1738769223133,0.148258,98439.0,98431.0,0.15239]
[1738769223336,0.00046527,98435.0,98432.0,0.10250365]
[1738769223534,0.15285027,98435.0,98432.0,0.10250365]
[1738769223776,0.152387,98434.0,98432.0,0.10250365]
[1738769224592,0.152387,98433.0,98432.0,0.10250365]
[1738769225348,0.00046527,98435.0,98432.0,0.10250365]
[1738769225517,0.15285027,98435.0,98432.0,0.10250365]
[1738769225867,0.152387,98433.0,98432.0,0.10250365]
[1738769226014,0.152387,98434.0,98432.0,0.10250365]
[1738769226218,0.152387,98433.0,98432.0,0.10250365]
[1738769227292,0.00046527,98435.0,98432.0,0.10250365]
[1738769227471,0.00046527,98435.0,98432.0,0.25489165]
[1738769227778,0.00046527,98435.0,98432.0,0.10250365]
[1738769228332,0.152386,98434.0,98432.0,0.10250365]
[1738769228535,0.00046527,98435.0,98432.0,0.10250365]
[1738769228742,0.152387,98434.0,98432.0,0.10250365]
[1738769229139,0.152387,98433.0,98432.0,0.10250365]
[1738769229569,0.00046527,98435.0,98432.0,0.10250365]
[1738769230174,0.152386,98434.0,98432.0,0.10250365]
[1738769230373,0.00057197,98435.0,98432.0,0.10250365]
[1738769230777,0.00057197,98435.0,98434.0,0.25488965]
[1738769230974,0.00057197,98435.0,98434.0,1.27616277]
[1738769231206,0.00057197,98435.0,98434.0,1.33067249]
[1738769231409,0.0130501,98441.0,98440.0,0.152377]
[1738769231661,0.0130501,98441.0,98440.0,1.3017528]
[1738769231864,0.0131896,98441.0,98440.0,0.13401337]
[1738769232063,0.0131896,98441.0,98440.0,0.10250365]
[1738769232315,0.1655646,98441.0,98440.0,0.10250365]
[1738769233029,0.1465646,98441.0,98440.0,0.10250365]
[1738769234164,0.203161,98444.0,98440.0,0.10250365]
[1738769234369,0.0808,98445.0,98441.0,0.10250365]
[1738769234781,0.152373,98442.0,98441.0,0.10250365]
[1738769236090,0.152398,98426.0,98425.0,0.00046527]
[1738769236296,0.152398,98426.0,98425.0,0.10296892]
[1738769236507,0.289678,98426.0,98425.0,0.10296892]
[1738769236894,0.439678,98426.0,98425.0,0.00046527]
[1738769237769,0.45407148,98426.0,98425.0,0.00046527]
[1738769237968,0.39289148,98426.0,98425.0,0.00046527]
[1738769238192,0.231231,98405.0,98404.0,0.00022407]
[1738769238395,0.277131,98405.0,98404.0,0.00036357]
[1738769239482,0.44140314,98405.0,98404.0,0.00036357]
[1738769239688,0.44140314,98405.0,98375.0,0.00022407]
[1738769239689,0.302456,98389.0,98375.0,0.00022407]
[1738769239898,0.426856,98389.0,98388.0,0.00036368]
[1738769241611,0.0761,98389.0,98388.0,0.10286733]
[1738769241797,0.228556,98389.0,98388.0,0.10286733]
[1738769242200,0.152456,98389.0,98388.0,0.10286733]
[1738769243579,0.152456,98389.0,98388.0,0.00036368]
[1738769243781,0.302456,98389.0,98388.0,0.00036368]
[1738769244205,0.152456,98389.0,98388.0,0.10286733]
[1738769247384,0.01446016,98390.0,98388.0,0.10286733]
[1738769247580,0.203264,98395.0,98389.0,0.10250365]
[1738769247800,0.152454,98390.0,98389.0,0.10250365]
[1738769248897,0.363396,98389.0,98388.0,0.00036368]
[1738769249102,0.438496,98389.0,98388.0,0.00036368]
[1738769250595,0.45280707,98389.0,98388.0,0.00036368]
[1738769252959,0.39186707,98389.0,98388.0,0.00036368]
[1738769254411,0.39186707,98389.0,98388.0,0.10286733]
[1738769254933,0.16676707,98389.0,98388.0,0.10286733]
[1738769255144,0.082,98397.0,98388.0,0.10286733]
[1738769255434,0.152456,98389.0,98388.0,0.00036368]
[1738769255962,0.152447,98395.0,98388.0,0.00036368]
[1738769256167,0.355675,98404.0,98388.0,0.00036368]
[1738769256370,0.152448,98395.0,98388.0,0.00036368]
[1738769256573,0.0001067,98405.0,98394.0,0.10250365]
[1738769256757,0.0001067,98405.0,98400.0,0.10250365]
[1738769257746,0.152435,98403.0,98400.0,0.10250365]
[1738769258160,0.0001067,98405.0,98400.0,0.10250365]
[1738769258161,0.152436,98402.0,98400.0,0.10250365]
[1738769258360,0.2033487,98405.0,98400.0,0.10250365]